{"text_format":"1","workbook":"xlsx","n_sheets":1,"sheets":["pct. 26"],"not_rendered":{"charts":0,"images":0,"macros":0,"external_links":2,"defined_names":1,"comments":0,"pivot_tables":0},"unopened":[],"bounds":{"document_bytes":16777216,"sheet_cells":100000,"rows_first":2000,"rows_last":500,"rows_between":2000,"halvings":0,"cell_chars":16384,"cell_head_chars":4096},"cells_cut":0,"cells_raw":0,"read":"whole","date_system":"1900"}

{"sheet":"pct. 26","index":0,"n_rows":12,"n_cols":12,"rows_kept":12,"cut":false,"hidden":false,"merged":[[1,0,1,10]]}
[null,null,null,null,null,null,null,null,null,null,"Anexa"]
["Rezultatele controalelor fiscale efectuate de catre Serviciul Fiscal de Stat in perioada trimestrul I 2018"]
["Tipul controalelor Indicatori","Controale fiscale la fata locului prin metoda de verificare totala (controale planificate)","Controale fiscale la fata locului prin metoda de verificare totala (privind lichidarea sau suspendarea activitatii agentului economic si alte controale fiscale neplanificate)","Controale fiscale la fata locului prin metoda de verificare tematica (controale planificate)","Controale fiscale la fata locului prin metoda de verificare tematica (privind restituirea TVA, accize, înregistrarea/anularea platitorilor de TVA, restituirea imp. pe venit/verificarea obligațiilor persoanelor fizice )","Controale fiscale la fata locului prin metoda de verificare repetata","Controale fiscale la fata locului prin metoda de verificare prin contrapunere","Controale fiscale prin metoda de verificare camerala","Controale fiscale la fata locului prin metoda operativa","Controale fiscale la fata locului prin metoda de verificare parțială","Controale fiscale la fata locului prin metoda de verificare faptică","(inclusiv) Controale efectuate prin metode și din surse indirecte și controale efectuate la agenții economici aflați în procedură de insolvabilitate"]
[null,1,2,3,4,5,6,7,8,9,10,11]
["Numarul controalelor fiscale efectuate total (unitati)",242,341,27,3333,8,196,1089,1989,12,350,117]
["Numarul controalelor in cadrul carora au fost stabilite incalcari (unitati)",240,251,19,1702,7,5,930,997,4,37,101]
["Ponderea incalcarilor stabilite din numarul total de controale efectuate (%)",{"$f":"B6/B5","v":0.99173553719008267},{"$f":"C6/C5","v":0.73607038123167157},0.70370370370370372,0.5106510651065107,0.875,2.5510204081632654E-2,0.85399449035812669,0.5012569130216189,0.33333333333333331,0.10571428571428572,0.86324786324786329]
["Suma total calculata a impozitelor, taxelor, majorarilor de intarziere s.a. (mii lei) *",19952.64,50167.91,764.71999999999991,17103.53,{"$f":"'[2]4sf (2)'!$X$47+'[2]4sf (2)'!$BG$47","v":33228.74},{"$f":"'[2]4sf (2)'!$X$46+'[2]4sf (2)'!$BG$46","v":0},{"$f":"'[2]4sf (2)'!$X$48+'[2]4sf (2)'!$BG$48","v":86.83},{"$f":"'[2]4sf (2)'!$X$46+'[2]4sf (2)'!$BG$46","v":0},{"$f":"'[2]4sf (2)'!$X$27+'[2]4sf (2)'!$X$35+'[2]4sf (2)'!$BG$35","v":420.4},{"$f":"'[2]4sf (2)'!$X$31+'[2]4sf (2)'!$BG$31","v":0},79255.569999999992]
["Suma total calculata a sanctiunilor fiscale (mii lei) *",10662.23,28824.79,508.74,14906.05,{"$f":"'[2]4sf (2)'!$CP$47","v":21781.079999999998},{"$f":"'[2]4sf (2)'!$CP$46","v":21.6},{"$f":"'[2]4sf (2)'!$CP$48","v":1059.01},{"$f":"'[2]4sf (2)'!$CP$43+'[2]4sf (2)'!$CP$29","v":4126.3},{"$f":"'[2]4sf (2)'!$CP$27+'[2]4sf (2)'!$CP$35","v":121.9},{"$f":"'[2]4sf (2)'!$CP$31","v":37379.01},49189.99]
[]
["* Fără excluderea sumelor micșorate în rezultatul examinării contestației, sumelor reduse conform art. 234 alin.(2) CF"]
[null,null,null,null,null,null,null,null,null,null," "]